bitfinex/quotes_SOLUSD_20250403
["timestamp","ask_amount","ask_price","bid_price","bid_amount"]
[1743669572530,19.30444729,118.91,118.86,27.85980886]
[1743669572727,22.28584729,118.93,118.88,19.30444729]
[1743669574136,30.69424729,118.93,118.88,19.30444729]
[1743669574529,30.69424729,118.93,118.89,8.4111]
[1743669574925,22.28584729,118.93,118.89,8.4111]
[1743669576133,30.69414729,118.93,118.89,8.4111]
[1743669576349,2.9814,118.93,118.89,8.4111]
[1743669576520,0.03,118.93,118.89,27.71554729]
[1743669581723,0.03,118.93,118.89,48.74334729]
[1743669583552,19.30444729,118.92,118.89,8.4111]
[1743669583852,19.33444729,118.93,118.89,8.4111]
[1743669584016,19.30444729,118.91,118.86,19.44660886]
[1743669584754,19.30444729,118.91,118.87,8.4121]
[1743669585440,19.30444729,118.91,118.87,27.71654729]
[1743669586250,0.03,118.93,118.89,19.30444729]
[1743669586431,0.03,118.93,118.91,19.30444729]
[1743669586924,0.03,118.93,118.92,8.409]
[1743669587525,0.03,118.93,118.91,8.4097]
[1743669587724,0.03,118.93,118.9,8.4101]
[1743669587939,19.30444729,118.92,118.89,8.4107]
[1743669588146,19.30444729,118.91,118.87,8.4125]
[1743669588847,19.30444729,118.92,118.87,27.71694729]
[1743669589348,19.30444729,118.92,118.87,48.74824729]
[1743669590826,0.03,118.93,118.89,8.4111]
[1743669591148,19.33444729,118.93,118.89,8.4111]
[1743669591649,19.30444729,118.91,118.88,8.4115]
[1743669593039,19.30444729,118.91,118.87,21.0943]
[1743669594358,19.30444729,118.91,118.87,40.39874729]
[1743669594951,19.30444729,118.92,118.87,40.39874729]
[1743669595347,19.30444729,118.92,118.87,48.81124729]
[1743669596436,19.30444729,118.9,118.87,0.063]
[1743669596636,19.30444729,118.89,118.87,0.063]
[1743669597230,154.8547,118.92,118.87,8.4754]
[1743669597455,19.30444729,118.9,118.87,8.4754]
[1743669597963,19.30444729,118.91,118.87,29.5067]
[1743669598135,165.75014729,118.92,118.87,48.81114729]
[1743669598455,19.33444729,118.93,118.88,19.44660886]
[1743669599049,0.03,118.93,118.88,19.44660886]
[1743669599357,0.03,118.93,118.9,8.4104]
[1743669599860,19.30444729,118.92,118.89,8.411]
[1743669600230,0.03,118.93,118.89,27.71544729]
[1743669603361,27.71394729,118.92,118.88,8.4112]
[1743669603554,19.30444729,118.91,118.88,8.4112]
[1743669603865,19.30444729,118.91,118.87,8.4753]
[1743669604843,27.71444729,118.91,118.87,8.4753]
[1743669606844,19.30444729,118.92,118.87,27.77974729]
[1743669607042,0.03,118.93,118.88,19.30444729]
[1743669607361,0.03,118.93,118.89,19.30444729]
[1743669607839,0.03,118.93,118.9,19.30444729]
[1743669608035,0.03,118.93,118.91,19.30444729]
[1743669608975,0.03,118.93,118.92,8.409]
[1743669609763,0.03,118.93,118.9,6.2917]
[1743669609961,19.33444729,118.93,118.88,40.05530494]
[1743669610170,19.30444729,118.92,118.88,21.54225765]
[1743669610864,19.33444729,118.93,118.88,27.71584729]
[1743669611263,27.74274729,118.93,118.88,27.71584729]
[1743669611472,27.74274729,118.93,118.88,40.84670494]
[1743669611850,19.30444729,118.91,118.88,13.13085765]
[1743669612052,19.30444729,118.9,118.88,13.13085765]
[1743669612455,154.633972,118.92,118.87,26.32471531]
[1743669612456,19.30444729,118.91,118.87,8.4755]
[1743669612855,163.41344729,118.92,118.87,27.77994729]
[1743669613060,135.7,118.92,118.88,19.30444729]
[1743669613372,0.03,118.93,118.9,19.30444729]
[1743669613949,0.03,118.93,118.89,19.30444729]
[1743669614174,53.74284729,118.93,118.88,19.30444729]
[1743669614349,19.30444729,118.92,118.87,61.94210494]
[1743669614750,19.30444729,118.92,118.88,13.13085765]
[1743669615058,19.30444729,118.92,118.89,8.4111]
[1743669615971,27.74284729,118.93,118.89,8.4111]
[1743669616159,0.03,118.93,118.89,48.74334729]
[1743669616557,19.33444729,118.93,118.89,8.4111]
[1743669616764,19.30444729,118.92,118.89,8.4111]
[1743669616975,27.71354729,118.92,118.88,8.4748]
[1743669617455,19.30444729,118.91,118.88,0.063]
[1743669617654,19.30444729,118.91,118.88,13.19385765]
[1743669618367,19.30444729,118.92,118.88,0.063]
[1743669618752,26.95444729,118.93,118.88,19.36744729]
[1743669619174,26.95444729,118.93,118.89,8.4111]
[1743669619474,0.03,118.93,118.89,27.71554729]
[1743669619686,0.03,118.93,118.9,19.30444729]
[1743669621287,0.03,118.93,118.89,68.17590494]
[1743669621570,0.03,118.93,118.89,47.14810494]
[1743669622180,0.03,118.93,118.89,34.01724729]
[1743669622768,0.03,118.93,118.89,47.14810494]
[1743669623878,0.03,118.93,118.9,19.30444729]
[1743669624382,0.03,118.93,118.89,68.17590494]
[1743669624559,0.03,118.93,118.89,27.84365765]
[1743669624969,0.03,118.93,118.89,14.7128]
[1743669625178,19.33444729,118.93,118.89,14.7128]
[1743669625376,19.30444729,118.92,118.88,21.60535765]
[1743669625685,8.4387,118.93,118.88,21.60535765]
[1743669625859,19.30444729,118.92,118.88,21.60535765]
[1743669627059,27.71364729,118.92,118.88,21.60535765]
[1743669627659,19.30444729,118.92,118.88,21.60535765]
[1743669628979,27.71374729,118.92,118.88,13.19385765]
[1743669629661,10.8905,118.96,118.9,19.30444729]
[1743669629863,19.30444729,118.95,118.9,19.30444729]
[1743669630185,30.19494729,118.96,118.9,19.30444729]
[1743669630697,19.30444729,118.93,118.89,8.4109]
[1743669631193,135.7,118.94,118.89,8.4109]
[1743669631392,3.2705,118.96,118.91,19.30444729]
[1743669631567,0.03,118.96,118.91,19.30444729]
[1743669632194,27.74054729,118.96,118.91,19.30444729]
[1743669632590,19.33444729,118.96,118.92,8.409]
[1743669633494,27.74064729,118.96,118.92,8.409]
[1743669634571,27.74064729,118.96,118.91,8.4097]
[1743669634775,19.30444729,118.94,118.91,8.4097]
[1743669635485,19.30444729,118.95,118.91,8.4097]
[1743669635671,19.30444729,118.94,118.91,8.4097]
[1743669636489,19.30444729,118.95,118.91,8.4097]
[1743669636690,27.71144729,118.95,118.91,8.4097]
[1743669637192,19.30444729,118.95,118.91,8.4097]
[1743669638098,155.03444729,118.96,118.91,27.71414729]
[1743669638265,135.73,118.96,118.91,27.71414729]
[1743669639497,135.73,118.96,118.91,8.4097]
[1743669639791,155.03444729,118.96,118.91,27.71414729]
[1743669639993,163.44064729,118.96,118.91,27.71414729]
[1743669641598,155.03444729,118.96,118.91,27.71414729]
[1743669642785,163.44054729,118.96,118.91,27.71414729]
[1743669643189,27.74054729,118.96,118.91,27.71414729]
[1743669643381,8.4361,118.96,118.91,27.71414729]
[1743669643583,27.74054729,118.96,118.91,27.71414729]
[1743669644202,19.33444729,118.96,118.91,27.71414729]
[1743669645814,27.71124729,118.95,118.9,47.44570494]
[1743669646895,19.30444729,118.94,118.9,28.14125765]
[1743669647487,19.30444729,118.94,118.9,15.0104]
[1743669649411,27.71124729,118.95,118.9,34.31484729]
[1743669651423,27.71124729,118.95,118.9,15.0104]
[1743669651716,20.7598665,118.95,118.9,27.3634665]
[1743669651920,20.7598665,118.95,118.9,27.4264665]
[1743669654829,20.7598665,118.95,118.9,0.063]
[1743669654830,12.3530665,118.93,118.9,0.063]
[1743669655221,0.03,118.96,118.9,41.99422807]
[1743669655523,0.03,118.96,118.91,12.3530665]
[1743669656122,0.03,118.96,118.92,8.409]
[1743669657521,0.03,118.96,118.91,8.4097]
[1743669658618,0.03,118.96,118.91,29.434]
[1743669660836,18.67964886,118.96,118.91,8.4097]
[1743669661124,18.67964886,118.96,118.9,25.54692415]
[1743669661125,18.64964886,118.94,118.9,21.60385765]
[1743669661297,12.3530665,118.94,118.9,13.19385765]
[1743669661611,20.7598665,118.95,118.9,21.60425765]
[1743669661812,18.64964886,118.94,118.9,21.60425765]
[1743669662121,18.64964886,118.94,118.9,8.4734]
[1743669663518,18.64964886,118.94,118.9,0.063]
[1743669663519,31.00271536,118.94,118.9,0.063]
[1743669663693,8.4083,118.93,118.9,0.063]
[1743669664690,20.7613665,118.93,118.9,0.063]
[1743669665091,31.00271536,118.92,118.9,0.063]
[1743669665809,39.41201536,118.92,118.9,0.063]
[1743669670123,31.00271536,118.92,118.9,0.063]
[1743669670924,39.41171536,118.92,118.9,0.063]
[1743669671723,12.3530665,118.91,118.9,0.063]
[1743669672028,39.41241536,118.91,118.9,0.063]
[1743669673634,39.83890007,118.91,118.9,0.0001]
[1743669673938,18.79181043,118.9,118.89,0.063]
[1743669674221,18.933972,118.89,118.88,0.063]
[1743669674526,38.9070385,118.89,118.88,0.063]
[1743669675913,47.3181385,118.89,118.88,0.063]
[1743669677025,47.3181385,118.89,118.84,0.063]
[1743669677026,44.933972,118.85,118.84,0.063]
[1743669677208,64.9070385,118.85,118.84,0.063]
[1743669677815,73.03661536,118.85,118.84,0.063]
[1743669679528,73.3209385,118.85,118.84,0.063]
[1743669681341,209.0209385,118.85,118.84,0.063]
[1743669683735,93.46310007,118.85,118.84,0.063]
[1743669685123,95.00810007,118.85,118.84,0.063]
[1743669686220,38.3530665,118.79,118.78,0.063]
[1743669686415,26.0,118.79,118.78,0.063]
[1743669686654,38.3530665,118.79,118.78,0.063]
[1743669687752,46.7712665,118.79,118.78,0.063]
[1743669687952,65.84740007,118.79,118.78,0.063]
[1743669689052,54.3908665,118.8,118.78,0.063]
[1743669689261,46.7708665,118.8,118.78,0.063]
[1743669690039,148.0530665,118.81,118.78,0.063]
[1743669690542,12.3530665,118.8,118.78,0.063]
[1743669691256,7.62,118.83,118.78,0.063]
[1743669691457,135.7,118.84,118.79,12.3530665]
[1743669691753,19.33301171,118.85,118.8,19.33301171]
[1743669692830,27.74711171,118.85,118.81,8.4167]
[1743669693385,19.33301171,118.85,118.81,8.4167]
[1743669694053,19.33301171,118.84,118.81,8.4167]
[1743669694261,19.33301171,118.82,118.78,6.6204]
[1743669695061,155.03301171,118.84,118.79,19.33301171]
[1743669695466,19.33301171,118.83,118.78,34.37221171]
[1743669695956,19.33301171,118.82,118.78,15.0392]
[1743669696833,27.74921171,118.82,118.78,15.0392]
[1743669697265,19.33301171,118.82,118.78,15.0392]
[1743669697762,27.74901171,118.82,118.78,15.0392]
[1743669698264,19.33301171,118.82,118.78,15.0392]
[1743669699435,27.74901171,118.82,118.78,15.0392]
[1743669700065,19.33301171,118.8,118.78,6.6204]
[1743669701658,8.4175,118.8,118.78,0.063]
[1743669702059,27.75051171,118.8,118.78,0.063]
[1743669702358,19.33301171,118.8,118.78,0.063]
[1743669702560,27.75011171,118.81,118.78,0.063]
[1743669704264,19.33301171,118.81,118.78,0.063]
[1743669704768,8.416,118.82,118.78,0.063]
[1743669704955,19.33301171,118.81,118.78,0.063]
[1743669705964,27.75011171,118.81,118.78,0.063]
[1743669706364,19.33301171,118.8,118.78,0.063]
[1743669707168,45.33301171,118.79,118.78,0.063]
[1743669707360,199.96698371,118.79,118.78,0.063]
[1743669707769,208.38518371,118.79,118.78,0.063]
[1743669708081,189.45121171,118.79,118.78,0.063]
[1743669710579,53.75121171,118.79,118.78,0.063]
[1743669711361,135.7,118.8,118.78,0.063]
[1743669711564,19.33301171,118.83,118.78,19.39601171]
[1743669711766,20.02690152,118.84,118.79,13.97100152]
[1743669711944,12.40690152,118.84,118.8,6.2496]
[1743669712269,12.37690152,118.82,118.8,6.2496]
[1743669712470,12.37690152,118.82,118.79,1.5941]
[1743669712674,12.37690152,118.81,118.78,0.063]
[1743669713947,12.37690152,118.83,118.78,12.43990152]
[1743669714146,20.79230152,118.83,118.78,12.43990152]
[1743669714470,31.05655038,118.84,118.79,12.37690152]
[1743669714774,20.82160152,118.84,118.79,12.37690152]
[1743669715277,12.37690152,118.83,118.78,12.43990152]
[1743669715770,19.341435,118.83,118.78,19.404435]
[1743669718075,19.341435,118.83,118.79,8.4182]
[1743669718248,27.786135,118.84,118.79,27.759635]
[1743669718647,19.371435,118.84,118.79,27.759635]
[1743669719274,19.341435,118.83,118.79,8.4182]
[1743669720480,0.03,118.84,118.8,19.341435]
[1743669720657,0.03,118.84,118.81,25.855135]
[1743669721085,0.03,118.84,118.82,19.341435]
[1743669722488,0.03,118.84,118.83,8.4153]
[1743669723268,0.03,118.84,118.82,8.4157]
[1743669730185,0.03,118.84,118.82,27.757135]
[1743669730494,0.03,118.84,118.83,19.341435]
[1743669731399,0.03,118.84,118.83,27.756735]
[1743669734894,0.03,118.84,118.83,27.89889657]
[1743669736379,27.77175843,118.89,118.83,27.89889657]
[1743669736570,19.341435,118.88,118.83,27.756735]
[1743669736799,19.341435,118.87,118.83,8.4153]
[1743669737683,12.36943341,118.87,118.83,8.4153]
[1743669738573,20.78213341,118.87,118.83,8.4153]
[1743669745013,0.01912343,118.89,118.85,12.36943341]
[1743669746310,0.01912343,118.89,118.84,12.36943341]
[1743669746311,12.38855684,118.89,118.84,12.36943341]
[1743669747310,0.01912343,118.89,118.85,12.36943341]
[1743669749418,0.01912343,118.89,118.86,8.4132]
[1743669750114,0.01912343,118.89,118.86,20.78263341]
[1743669751109,0.01912343,118.89,118.86,26.87633341]
[1743669752508,0.01912343,118.89,118.88,12.36943341]
[1743669752805,0.01912343,118.89,118.88,38.36943341]
[1743669753707,0.01912343,118.89,118.88,46.78123341]
[1743669755922,0.01912343,118.89,118.88,20.78123341]
[1743669756205,0.01912343,118.89,118.88,8.4118]
[1743669756393,0.01912343,118.89,118.88,20.78123341]
[1743669758995,0.01912343,118.89,118.88,8.4118]
[1743669759289,0.01912343,118.89,118.88,20.78123341]
[1743669760018,0.01912343,118.89,118.88,46.92339498]
[1743669760400,0.01912343,118.89,118.88,67.41876698]
[1743669763003,0.03,118.96,118.95,12.36943341]
[1743669763927,0.03,118.96,118.95,20.77623341]
[1743669764230,0.03,118.98,118.96,0.14216157]
[1743669764526,0.03,118.98,118.97,12.36943341]
[1743669764903,47.1925,119.07,119.0,26.14216157]
[1743669764904,135.7,119.07,119.0,26.14216157]
[1743669765121,135.7,119.07,118.99,1.6421]
[1743669765122,148.06943341,119.09,119.01,26.14216157]
[1743669765331,12.36943341,119.08,119.01,26.14216157]
[1743669765636,12.36943341,119.06,119.01,26.0]
[1743669765817,19.26586129,119.06,119.01,53.66776129]
[1743669766504,26.86586129,119.07,119.02,19.26586129]
[1743669766730,19.26586129,119.07,119.02,19.26586129]
[1743669766932,27.66426129,119.07,119.02,19.26586129]
[1743669767235,19.26586129,119.05,119.01,8.4019]
[1743669768236,19.26586129,119.05,119.0,27.66916129]
[1743669769235,19.26586129,119.03,118.97,13.965]
[1743669769536,19.26586129,119.03,118.98,27.67026129]
[1743669769753,19.26586129,119.02,118.97,25.63086129]
[1743669769951,19.26586129,119.01,118.96,1.5994]
[1743669770129,19.26586129,119.01,118.96,8.4056]
[1743669770450,19.26586129,119.01,118.96,27.67146129]
[1743669771452,27.66916129,119.01,118.96,27.67146129]
[1743669772158,19.26586129,119.0,118.96,19.26586129]
[1743669772460,26.86586129,119.0,118.95,27.67256129]
[1743669772655,26.86586129,119.0,118.95,8.4067]
[1743669772839,26.86586129,119.0,118.95,27.67256129]
[1743669773164,8.404,118.99,118.95,27.67256129]
[1743669773748,27.66986129,118.99,118.94,25.86346129]
[1743669773950,19.26586129,118.98,118.94,6.5976]
[1743669774131,19.26586129,118.98,118.93,9.994]
[1743669774331,19.26586129,118.98,118.93,29.25986129]
[1743669775149,8.4047,118.98,118.93,29.25986129]
[1743669775350,135.7,118.99,118.93,29.25986129]
[1743669775351,163.37016129,118.99,118.94,19.26586129]
[1743669775750,163.37016129,118.99,118.93,29.25986129]
[1743669775751,19.26586129,118.98,118.93,29.25986129]
[1743669776334,27.67066129,118.98,118.93,29.25986129]
[1743669776648,19.26586129,118.97,118.92,27.67446129]
[1743669776856,19.26586129,118.97,118.93,19.26586129]
[1743669777652,19.26586129,118.97,118.93,27.67366129]
[1743669777955,19.26586129,118.97,118.93,8.4078]
[1743669778651,19.26586129,118.97,118.93,27.67366129]
[1743669779949,27.67136129,118.97,118.93,8.4078]
[1743669780148,19.26586129,118.96,118.91,6.415]
[1743669780352,19.26586129,118.96,118.91,25.68086129]
[1743669780836,19.26586129,118.95,118.91,14.8243]
[1743669781539,26.86586129,118.96,118.91,34.09016129]
[1743669781753,35.27256129,118.96,118.91,34.09016129]
[1743669782260,19.26586129,118.95,118.91,34.09016129]
[1743669783355,35.27256129,118.96,118.91,34.09016129]
[1743669785061,19.26586129,118.95,118.91,34.15316129]
[1743669785444,19.26586129,118.95,118.91,14.8873]
[1743669785637,27.67296129,118.95,118.91,34.15316129]
[1743669786959,19.26586129,118.92,118.91,0.063]
[1743669787843,26.86586129,118.92,118.91,0.063]
[1743669788762,35.27486129,118.92,118.91,0.063]
[1743669792163,26.86586129,118.92,118.91,0.063]
[1743669792368,154.96586129,118.94,118.91,0.063]
[1743669792575,162.75614886,118.96,118.91,0.063]
[1743669792865,19.26586129,118.96,118.91,19.32886129]
[1743669793767,19.26586129,118.95,118.92,8.409]
[1743669793943,19.26586129,118.96,118.92,8.409]
[1743669794747,19.26586129,118.95,118.92,8.409]
[1743669797755,19.26586129,118.95,118.91,27.73816129]
[1743669798650,19.26586129,118.96,118.91,27.73816129]
[1743669798857,143.3,118.97,118.91,27.73816129]
[1743669798858,135.7,118.97,118.94,19.26586129]
[1743669799060,26.86586129,118.98,118.94,19.26586129]
[1743669799264,35.27066129,118.98,118.93,19.26586129]
[1743669799452,19.26586129,118.97,118.92,20.88136129]
[1743669800268,19.26586129,118.97,118.93,8.4083]
[1743669801073,27.67136129,118.97,118.93,8.4083]
[1743669802774,27.67136129,118.97,118.92,1.6155]
[1743669802970,19.26586129,118.94,118.91,0.063]
[1743669803277,26.84586129,118.94,118.91,0.063]
[1743669804366,35.25376129,118.94,118.91,0.063]
[1743669804568,19.26586129,118.92,118.91,0.063]
[1743669805358,19.26586129,118.93,118.91,0.063]
[1743669806680,27.67426129,118.93,118.91,0.063]
[1743669807388,19.26586129,118.92,118.91,0.063]
[1743669808089,27.67486129,118.92,118.91,0.063]
[1743669809175,27.342272,118.93,118.91,0.063]
[1743669809375,19.26586129,118.92,118.91,0.063]
[1743669811393,27.67486129,118.92,118.91,0.063]
[1743669811773,39.70284601,118.92,118.91,0.063]
[1743669813278,175.40284601,118.92,118.91,0.063]
[1743669818600,135.7,118.92,118.91,0.063]
[1743669818983,12.35987401,118.93,118.91,0.063]
[1743669819575,12.35987401,118.92,118.91,0.063]
[1743669820196,12.35987401,118.93,118.91,0.063]
[1743669820901,144.1071,118.95,118.91,0.063]
[1743669821078,143.28,118.95,118.91,0.063]
[1743669821402,148.05987401,118.95,118.91,0.063]
[1743669821605,12.35987401,118.95,118.91,12.42287401]
[1743669821786,12.35987401,118.95,118.91,13.98897401]
[1743669822787,12.35987401,118.95,118.92,8.409]
[1743669823186,19.93987401,118.96,118.92,14.6934]
[1743669823403,7.58,118.96,118.92,27.05327401]
[1743669824510,135.7,118.98,118.92,14.6934]
[1743669824714,7.58,118.98,118.94,12.35987401]
[1743669825205,7.58,118.98,118.94,25.49073166]
[1743669825379,12.35987401,118.99,118.94,25.49073166]
[1743669825799,12.35987401,118.99,118.94,51.75244697]
[1743669826307,12.35987401,118.99,118.95,8.4068]
[1743669826490,164.04347401,119.0,118.95,20.76667401]
[1743669826695,164.04347401,119.0,118.95,33.89753166]
[1743669830399,12.35987401,118.97,118.95,13.13085765]
[1743669830601,12.35987401,118.96,118.95,13.13085765]
[1743669831196,38.87384601,118.96,118.95,13.13085765]
[1743669831605,18.933972,118.95,118.91,13.19385765]
[1743669831793,12.35987401,118.94,118.91,13.19385765]
[1743669832494,12.35987401,118.93,118.91,13.19385765]
[1743669833205,12.35987401,118.93,118.91,0.063]
[1743669833416,12.35987401,118.94,118.91,8.4726]
[1743669833808,19.30505707,118.94,118.91,8.4726]
[1743669836020,155.00505707,118.95,118.91,0.063]
[1743669836615,19.30505707,118.95,118.91,0.063]
[1743669836796,19.30505707,118.95,118.91,13.19385765]
[1743669838026,19.30505707,118.95,118.92,8.409]
[1743669838218,26.88505707,118.96,118.92,8.409]
[1743669838525,26.88505707,118.96,118.92,27.71405707]
[1743669838526,7.58,118.96,118.92,27.71405707]
[1743669838724,7.58,118.96,118.93,19.30505707]
[1743669838905,135.7,118.97,118.93,19.30505707]
[1743669839510,7.58,118.98,118.94,27.49665707]
[1743669839910,155.00505707,119.0,118.95,19.30505707]
[1743669840113,7.58,118.99,118.95,19.30505707]
[1743669840316,7.58,118.99,118.96,8.4061]
[1743669840716,7.58,118.99,118.97,19.30505707]
[1743669841034,155.03505707,119.02,118.98,19.30505707]
[1743669841222,0.03,119.02,118.98,19.30505707]
[1743669841710,0.03,119.02,118.99,19.30505707]
[1743669842712,0.03,119.02,119.0,8.4033]
[1743669842908,0.03,119.02,119.0,27.70835707]
[1743669844113,0.03,119.02,119.01,19.30505707]
[1743669844325,0.03,119.02,119.0,27.70835707]
[1743669844626,19.33505707,119.05,119.0,27.70835707]
[1743669845728,27.73485707,119.05,119.0,27.70835707]
[1743669845913,19.30505707,119.02,118.99,21.28385765]
[1743669846516,19.30505707,119.03,118.99,29.68765765]
[1743669846704,19.30505707,119.03,118.99,48.99271472]
[1743669847024,135.7,119.04,119.0,19.30505707]
[1743669848729,135.7,119.04,119.01,8.4026]
[1743669849230,155.00505707,119.04,119.01,8.4026]
[1743669850130,19.30505707,119.03,118.99,16.5564]
[1743669850732,19.30505707,119.02,118.99,16.5564]
[1743669851929,19.30505707,119.03,118.99,16.5564]
[1743669855012,19.30505707,119.02,118.99,16.5564]
[1743669856216,19.30505707,119.03,118.99,16.5564]
[1743669857432,19.30505707,119.03,118.99,35.86145707]
[1743669857633,19.30505707,119.03,118.99,16.5564]
[1743669861417,27.70675707,119.03,118.99,16.5564]
[1743669861618,27.70675707,119.03,118.99,14.944]
[1743669861918,20.7381329,119.03,118.99,14.944]
[1743669862134,12.3364329,119.01,118.98,0.063]
[1743669862329,12.3364329,119.01,118.98,8.4676]
[1743669863561,28.3183329,119.02,118.98,0.063]
[1743669863746,26.85900896,119.02,118.98,0.063]
[1743669863915,7.58,119.02,118.99,19.27900896]
[1743669864641,7.58,119.02,118.98,19.34200896]
[1743669865543,7.58,119.02,118.99,8.404]
[1743669867652,7.58,119.02,118.99,27.68300896]
[1743669867945,135.73,119.05,119.0,19.27900896]
[1743669868136,0.03,119.05,119.01,20.92630896]
[1743669868536,0.03,119.05,119.02,19.27900896]
[1743669868936,19.30900896,119.05,119.01,1.6473]
[1743669869138,27.70890896,119.05,119.01,1.6473]
[1743669869330,19.27900896,119.04,119.01,1.6473]
[1743669869536,19.27900896,119.02,118.99,14.4233]
[1743669871238,19.27900896,119.03,118.99,14.4233]
[1743669872157,15.9808,119.04,118.99,14.4233]
[1743669872158,35.25980896,119.04,118.99,33.70230896]
[1743669872553,19.27900896,119.03,118.99,14.4233]
[1743669873263,27.68040896,119.03,118.99,14.4233]
[1743669874449,19.27900896,119.02,118.99,14.4233]
[1743669874764,19.27900896,119.02,118.99,8.404]
[1743669875475,27.68090896,119.02,118.99,8.404]
[1743669875775,19.27900896,119.01,118.98,0.063]
[1743669875951,19.27900896,118.99,118.98,0.063]
[1743669876641,27.68300896,118.99,118.98,0.063]
[1743669877469,19.27900896,118.99,118.98,0.063]
[1743669881566,7.58,119.0,118.98,0.063]
[1743669881768,154.97900896,119.01,118.98,0.063]
[1743669882159,19.27900896,119.01,118.98,0.063]
[1743669884461,0.03,119.02,118.98,19.34200896]
[1743669884854,19.30900896,119.02,118.98,0.063]
[1743669885165,19.27900896,119.0,118.98,0.063]
[1743669886760,19.27900896,119.01,118.98,0.063]
[1743669888173,19.27900896,119.0,118.98,0.063]
[1743669888377,19.27900896,118.99,118.98,0.063]
[1743669888553,19.27900896,119.0,118.98,0.063]
[1743669890478,37.92865782,119.01,118.98,0.063]
[1743669890654,144.1321,119.02,118.98,0.063]
[1743669890655,155.00900896,119.02,118.98,0.063]
[1743669890862,19.30900896,119.02,118.98,0.063]
[1743669891177,19.27900896,119.01,118.98,0.063]
[1743669892175,27.68160896,119.01,118.98,0.063]
[1743669892781,19.27900896,119.0,118.98,0.063]
[1743669893779,19.27900896,118.99,118.98,0.063]
[1743669894165,19.27900896,119.0,118.98,0.063]
[1743669895473,8.4026,119.01,118.98,0.063]
[1743669895676,19.27900896,119.0,118.98,0.063]
[1743669896592,19.27900896,118.99,118.98,0.063]
[1743669896884,181.18865782,118.99,118.98,0.063]
[1743669897183,181.47298096,118.99,118.98,0.063]
[1743669898612,189.87698096,118.99,118.98,0.063]
[1743669899279,189.59265782,118.99,118.98,0.063]
[1743669899590,162.53900896,118.99,118.98,0.063]
[1743669901294,26.83900896,118.99,118.98,0.063]
[1743669902094,35.24300896,118.99,118.98,0.063]
[1743669903597,54.17698096,118.99,118.98,0.063]
[1743669904106,26.0,118.95,118.94,0.063]
[1743669904291,71.77298096,118.95,118.94,0.063]
[1743669905517,80.17978096,118.95,118.94,0.063]
[1743669907317,80.32194253,118.95,118.94,0.063]
[1743669908011,80.17978096,118.95,118.94,0.063]
[1743669909109,63.92865782,118.95,118.94,0.063]
[1743669909414,19.27900896,118.95,118.94,0.063]
[1743669909897,7.56,118.96,118.94,0.063]
[1743669910231,19.27900896,118.95,118.94,0.063]
[1743669910721,26.83900896,118.96,118.94,0.063]
[1743669911520,7.56,118.96,118.94,0.063]
[1743669912318,19.27900896,118.98,118.94,6.6264]
[1743669913236,26.20964886,118.99,118.95,8.4068]
[1743669913413,19.27900896,118.98,118.95,8.4068]
[1743669913821,135.7,119.0,118.95,48.70300896]
[1743669913822,19.27900896,119.0,118.95,48.70300896]
[1743669914015,143.29,119.02,118.96,19.27900896]
[1743669914215,19.27900896,119.01,118.96,19.27900896]
[1743669914923,19.27900896,119.0,118.95,48.70300896]
[1743669915232,26.86900896,119.02,118.97,48.69810896]
[1743669915631,19.30900896,119.02,118.97,48.69810896]
[1743669916519,19.30900896,119.02,118.98,19.27900896]
[1743669916520,0.03,119.02,118.98,19.27900896]
[1743669916726,0.03,119.02,118.99,6.6174]
[1743669916941,0.03,119.02,118.99,25.89640896]
[1743669917441,0.03,119.02,119.0,8.4033]
[1743669918933,0.03,119.02,119.0,27.68230896]
[1743669919436,0.03,119.02,119.01,19.27900896]
[1743669920635,0.03,119.02,119.01,20.87650896]
[1743669921532,0.03,119.02,119.01,29.27910896]
[1743669921927,0.03,119.02,119.01,29.42127053]
[1743669922131,0.03,119.05,119.01,50.42787053]
[1743669922428,19.27900896,119.04,119.01,8.4026]